bitfinex/quotes_SOLUSD_20240829
["timestamp","ask_amount","ask_price","bid_price","bid_amount"]
[1724958410491,7.1312,140.23,140.18,52.38448]
[1724958410782,7.1312,140.23,140.18,45.25098]
[1724958411362,7.1312,140.23,140.18,52.38458]
[1724958411587,12.0738,140.28,140.18,52.38458]
[1724958411588,52.06055954,140.25,140.18,45.0]
[1724958411770,52.06055954,140.22,140.12,67.4916]
[1724958411976,52.06055954,140.22,140.15,24.9726]
[1724958412296,7.1317,140.22,140.16,7.1345]
[1724958412787,7.1326,140.2,140.15,17.8379]
[1724958412986,7.1321,140.21,140.16,45.25098]
[1724958413382,17.8281,140.23,140.12,31.8102]
[1724958413688,7.1335,140.19,140.13,7.136]
[1724958413875,7.1335,140.19,140.14,7.1355]
[1724958414297,7.1327,140.2,140.14,7.1355]
[1724958414473,7.1327,140.2,140.15,7.1351]
[1724958414787,7.1327,140.2,140.16,45.25098]
[1724958414985,7.1324,140.21,140.16,45.25098]
[1724958415193,7.1327,140.2,140.16,45.25098]
[1724958415775,35.6472,140.27,140.15,0.12549]
[1724958415776,7.1336,140.19,140.15,0.12549]
[1724958415975,17.8276,140.24,140.13,24.9754]
[1724958416293,20.0,140.23,140.14,7.1352]
[1724958416592,7.1326,140.2,140.14,7.1352]
[1724958416785,17.8276,140.24,140.14,7.1352]
[1724958416786,7.1332,140.19,140.14,7.1352]
[1724958417091,7.1352,140.15,140.1,24.9818]
[1724958417290,35.6472,140.27,140.14,17.8383]
[1724958417291,53.4702,140.27,140.14,17.8383]
[1724958417494,53.4702,140.27,140.16,7.1346]
[1724958417495,7.1321,140.21,140.16,7.1346]
[1724958417674,17.8264,140.25,140.14,24.9735]
[1724958418002,7.1327,140.2,140.15,7.135]
[1724958418179,17.8264,140.25,140.15,7.135]
[1724958418180,17.8264,140.25,140.16,17.8358]
[1724958418499,7.1317,140.22,140.17,0.25098]
[1724958419164,7.1321,140.21,140.17,0.25098]
[1724958419371,7.1331,140.2,140.16,45.0]
[1724958419581,35.6502,140.26,140.16,45.0]
[1724958419790,17.8283,140.23,140.12,24.9775]
[1724958420002,7.1348,140.16,140.1,7.1377]
[1724958420296,45.12549,140.25,140.09,7.1382]
[1724958420297,7.1352,140.15,140.09,7.1382]
[1724958420462,7.1352,140.15,140.08,17.8463]
[1724958420669,7.1352,140.15,140.1,7.1377]
[1724958420972,7.1349,140.16,140.1,7.1377]
[1724958421174,17.8357,140.17,140.04,17.8509]
[1724958421377,7.1377,140.1,140.04,24.9917]
[1724958421684,17.8393,140.14,140.04,17.8509]
[1724958421994,7.1389,140.08,140.03,30.8839]
[1724958422193,17.8393,140.14,140.03,30.8839]
[1724958422507,20.0,140.13,140.03,30.8839]
[1724958422670,17.8431,140.11,140.0,17.856]
[1724958422872,33.2681,140.1,139.98,30.434]
[1724958423075,7.1423,140.01,139.96,17.8612]
[1724958423801,52.06055954,140.05,139.99,7.1431]
[1724958424002,17.8466,140.09,139.98,17.8595]
[1724958424178,13.2681,140.1,140.01,7.1422]
[1724958424378,13.2681,140.1,139.98,17.8595]
[1724958424684,12.3486,140.15,139.98,73.68055954]
[1724958424883,7.1372,140.12,140.06,7.1397]
[1724958425121,7.1372,140.11,140.05,0.12549]
[1724958425290,17.8397,140.14,140.03,0.12549]
[1724958425599,17.8397,140.14,140.03,45.25098]
[1724958425773,7.1382,140.09,140.03,52.39228]
[1724958425977,17.8397,140.14,140.03,63.10408]
[1724958426369,17.8397,140.14,140.0,7.1428]
[1724958426569,7.1398,140.06,140.01,7.1421]
[1724958426792,52.06055954,140.08,140.02,62.8543]
[1724958427003,7.1382,140.1,140.04,7.1406]
[1724958427186,30.1876,140.15,140.06,7.1393]
[1724958427384,7.1373,140.11,140.05,62.8505]
[1724958427582,7.1373,140.11,140.05,69.9907]
[1724958427788,7.1379,140.1,140.06,0.25098]
[1724958427988,7.1383,140.09,140.05,45.0]
[1724958428196,7.1383,140.09,140.02,17.8544]
[1724958428401,7.1388,140.08,140.03,45.12549]
[1724958428889,52.06055954,140.12,140.04,7.1407]
[1724958429095,52.06055954,140.12,140.03,52.26679]
[1724958429301,7.1399,140.06,140.01,7.1423]
[1724958429511,7.1399,140.06,140.02,45.12549]
[1724958429802,7.1392,140.08,140.02,52.26719]
[1724958430005,17.8417,140.13,140.02,52.26719]
[1724958430006,7.1383,140.09,140.03,7.1413]
[1724958430207,7.1373,140.11,140.06,7.1397]
[1724958430507,53.5096,140.17,140.07,7.1387]
[1724958430708,7.1358,140.14,140.08,45.0]
[1724958430885,7.1358,140.14,140.09,0.12549]
[1724958431208,30.8585,140.19,140.1,7.1377]
[1724958431209,19.4838,140.15,140.1,7.1377]
[1724958431504,12.0498,140.24,140.17,7.1341]
[1724958431679,12.0498,140.24,140.18,45.0]
[1724958432005,17.8224,140.28,140.19,0.25098]
[1724958432303,7.1306,140.25,140.19,7.38388]
[1724958432493,7.1296,140.26,140.2,52.1326]
[1724958432699,7.1297,140.26,140.21,45.25098]
[1724958433283,17.8216,140.28,140.18,17.833]
[1724958433607,7.1306,140.24,140.19,45.0]
[1724958433782,7.1311,140.23,140.18,17.833]
[1724958434200,2.81987449,140.35,140.25,17.825]
[1724958434396,7.1257,140.34,140.26,45.25098]
[1724958434707,19.3706836,140.37,140.3,7.1274]
[1724958435006,19.1743,140.37,140.31,52.25239]
[1724958435207,7.1232,140.39,140.32,7.1263]
[1724958435510,7.1235,140.38,140.31,62.94269]
[1724958435710,12.6525,140.41,140.31,62.94269]
[1724958435885,7.124,140.38,140.31,62.94269]
[1724958436084,12.6525,140.41,140.31,62.94269]
[1724958436289,7.1229,140.4,140.32,7.25189]
[1724958436606,7.123,140.39,140.33,45.12549]
[1724958436816,7.1225,140.4,140.34,7.1255]
[1724958437109,7.1236,140.38,140.33,45.0]
[1724958437306,12.6525,140.41,140.33,7.126]
[1724958438201,12.8488836,140.46,140.34,62.8133]
[1724958438410,7.122,140.41,140.35,7.24999]
[1724958438713,7.1225,140.4,140.36,0.12549]
[1724958439004,7.1233,140.39,140.34,17.8133]
[1724958439213,7.1235,140.38,140.32,7.1265]
[1724958439414,7.123,140.39,140.33,7.126]
[1724958440132,7.1235,140.38,140.32,7.1265]
[1724958440291,35.6025,140.44,140.26,17.8231]
[1724958440499,65.12549,140.43,140.28,7.1284]
[1724958440895,7.126,140.34,140.26,24.9522]
[1724958441086,7.126,140.34,140.27,7.1291]
[1724958441415,17.8079,140.39,140.27,7.1291]
[1724958441586,17.8079,140.39,140.26,17.8231]
[1724958441789,17.8114,140.36,140.25,31.8548]
[1724958441992,17.8114,140.36,140.25,38.9849]
[1724958442313,7.127,140.31,140.26,7.1296]
[1724958442621,7.127,140.31,140.25,56.81]
[1724958442784,7.1275,140.3,140.25,56.81]
[1724958442990,7.1271,140.31,140.26,7.1295]
[1724958443182,7.1271,140.31,140.27,0.12549]
[1724958443489,7.1285,140.29,140.23,7.1311]
[1724958443783,7.1286,140.28,140.22,7.1315]
[1724958444005,7.1291,140.27,140.22,7.1315]
[1724958444207,7.1286,140.28,140.22,7.1315]
[1724958444409,17.8175,140.32,140.21,17.8292]
[1724958444618,65.12549,140.31,140.2,40.1162]
[1724958444800,7.1301,140.25,140.2,40.1162]
[1724958444999,7.1301,140.25,140.2,32.9836]
[1724958446202,7.1307,140.24,140.2,32.9836]
[1724958446531,17.8204,140.29,140.17,17.8343]
[1724958446733,7.1309,140.24,140.19,7.133]
[1724958447211,7.1307,140.24,140.19,7.1329]
[1724958447414,7.1301,140.25,140.2,7.1326]
[1724958447725,7.1301,140.25,140.21,45.0]
[1724958447901,7.1301,140.25,140.21,45.12549]
[1724958448329,35.6344,140.32,140.22,0.12549]
[1724958448710,7.1285,140.29,140.22,0.12549]
[1724958449024,7.1292,140.27,140.22,7.25709]
[1724958449334,17.8162,140.33,140.22,7.25709]
[1724958449335,7.1286,140.28,140.23,52.25649]
[1724958449536,7.1286,140.28,140.24,0.12549]
[1724958450148,7.1281,140.29,140.24,7.25609]
[1724958450310,7.1281,140.29,140.25,45.12549]
[1724958450516,7.1275,140.3,140.25,45.12549]
[1724958450831,7.1283,140.29,140.25,0.12549]
[1724958451821,7.1286,140.28,140.24,45.12549]
[1724958453129,69.87945954,140.31,140.2,17.8312]
[1724958453332,7.1301,140.25,140.21,0.12549]
[1724958453534,17.821,140.29,140.2,24.9638]
[1724958453733,17.821,140.29,140.2,17.8312]
[1724958453923,7.1301,140.26,140.21,7.132]
[1724958454825,52.06055954,140.3,140.2,17.8312]
[1724958455124,52.06055954,140.3,140.21,45.0]
[1724958455324,52.06055954,140.3,140.22,0.25098]
[1724958455632,7.1295,140.27,140.22,7.38248]
[1724958455844,7.1295,140.27,140.23,45.0]
[1724958456647,7.08086601,140.27,140.23,45.0]
[1724958457637,12.6932,140.36,140.27,17.8227]
[1724958457845,7.1279,140.3,140.26,0.12549]
[1724958458030,7.1279,140.3,140.25,45.25098]
[1724958458235,7.1279,140.3,140.25,52.38068]
[1724958459046,7.1287,140.28,140.25,45.25098]
[1724958459354,17.8145,140.34,140.26,0.12549]
[1724958459524,17.8145,140.34,140.26,7.1294]
[1724958459846,7.1276,140.3,140.25,52.38098]
[1724958460046,7.1271,140.31,140.25,45.25098]
[1724958460353,7.1272,140.31,140.26,24.9529]
[1724958460526,7.1272,140.31,140.27,45.12549]
[1724958460726,7.1282,140.29,140.25,7.25549]
[1724958460950,7.1279,140.3,140.25,7.25549]
[1724958461247,7.1279,140.3,140.26,45.12549]
[1724958462249,7.127,140.31,140.26,52.25489]
[1724958462556,7.1265,140.32,140.27,7.25439]
[1724958463326,7.1259,140.34,140.29,7.1276]
[1724958463732,7.1266,140.32,140.28,0.12549]
[1724958464023,7.1267,140.32,140.27,25.07659]
[1724958464629,42.81498625,140.34,140.24,50.9754]
[1724958464838,17.8133,140.35,140.24,50.9754]
[1724958465242,7.1275,140.31,140.27,7.129]
[1724958465436,17.8133,140.35,140.26,35.6478]
[1724958465437,42.81498625,140.35,140.26,35.6478]
[1724958465621,7.1261,140.33,140.28,17.8205]
[1724958465851,7.1266,140.32,140.28,17.8205]
[1724958466553,42.81498625,140.33,140.26,7.1295]
[1724958466739,7.1272,140.31,140.26,7.1295]
[1724958467256,7.1272,140.31,140.27,0.12549]
[1724958467752,7.1277,140.3,140.26,7.1295]
[1724958467928,7.1272,140.31,140.27,0.12549]
[1724958468132,7.1272,140.31,140.27,45.25098]
[1724958468655,7.1265,140.32,140.27,52.37998]
[1724958468829,42.81498625,140.33,140.27,45.0]
[1724958469034,42.81498625,140.35,140.22,17.8285]
[1724958469235,7.1281,140.29,140.24,7.1304]
[1724958469429,17.8173,140.32,140.22,17.8285]
[1724958469631,7.1292,140.27,140.22,7.1315]
[1724958469854,17.8195,140.3,140.21,7.132]
[1724958470037,7.1297,140.26,140.21,7.132]
[1724958470234,7.1291,140.27,140.22,7.1314]
[1724958470755,7.1296,140.26,140.21,24.9615]
[1724958471051,7.1295,140.27,140.22,7.1315]
[1724958471852,7.1295,140.27,140.19,31.2547]
[1724958471853,17.8195,140.3,140.19,31.2547]
[1724958472036,12.4354,140.27,140.18,17.8338]
[1724958472349,12.4354,140.27,140.16,7.1343]
[1724958472350,7.1322,140.21,140.16,7.1343]
[1724958472740,7.1327,140.2,140.15,24.9725]
[1724958473060,7.1322,140.21,140.15,17.8374]
[1724958473230,7.1322,140.21,140.16,7.1346]
[1724958473738,7.1326,140.2,140.16,7.1346]
[1724958473937,7.1326,140.2,140.15,24.9725]
[1724958474238,7.1331,140.19,140.15,17.8374]
[1724958474450,7.1351,140.16,140.11,7.1368]
[1724958474956,7.1352,140.15,140.1,7.1376]
[1724958475337,7.1357,140.14,140.09,24.9832]
[1724958475933,7.1357,140.14,140.1,7.1377]
[1724958476242,12.3555,140.18,140.09,17.8451]
[1724958476453,7.1352,140.15,140.1,7.1377]
[1724958476770,7.1349,140.16,140.11,7.137]
[1724958477942,12.3555,140.18,140.11,7.137]
[1724958477943,7.1342,140.17,140.12,7.1366]
[1724958479042,7.1353,140.15,140.11,17.8421]
[1724958479239,7.1347,140.16,140.12,45.25098]
[1724958479758,7.1347,140.16,140.12,0.12549]
[1724958480051,7.1347,140.16,140.11,24.9793]
[1724958480253,12.3555,140.18,140.08,50.1243]
[1724958480460,7.1367,140.12,140.08,17.8466]
[1724958481033,30.1904,140.18,140.08,24.9853]
[1724958481249,7.1362,140.14,140.09,7.1379]
[1724958481430,12.3555,140.18,140.12,7.1366]
[1724958481633,12.1164,140.23,140.12,17.8407]
[1724958481834,12.1164,140.23,140.13,7.1357]
[1724958482038,7.1338,140.18,140.13,7.1357]
[1724958482459,12.1164,140.23,140.14,7.1356]
[1724958482460,7.1332,140.19,140.14,7.1356]
[1724958486062,7.1327,140.2,140.15,7.1351]
[1724958486443,7.1327,140.2,140.14,17.96409]
[1724958486444,19.248,140.23,140.16,17.8362]
[1724958486656,19.2476,140.23,140.18,7.1335]
[1724958486967,7.1307,140.24,140.18,17.8335]
[1724958487261,31.1486,140.27,140.2,7.1322]
[1724958487262,49.94508625,140.25,140.2,7.1322]
[1724958487761,42.81498625,140.25,140.21,7.132]
[1724958488338,49.94518625,140.25,140.21,7.132]
[1724958488943,49.94418625,140.27,140.2,17.8304]
[1724958489138,7.1286,140.28,140.23,7.1306]
[1724958489345,7.1279,140.3,140.25,7.1297]
[1724958489552,13.3253,140.31,140.26,8.54922596]
[1724958489762,13.3253,140.31,140.27,1.41962474]
[1724958490138,7.1274,140.31,140.27,1.41962474]
[1724958490759,7.1274,140.31,140.26,7.1295]
[1724958490937,13.3253,140.35,140.24,17.8256]
[1724958491142,7.131,140.24,140.21,32.2872]
[1724958491467,17.8211,140.29,140.18,24.9675]
[1724958491782,7.132,140.22,140.16,39.4216]
[1724958491944,7.1323,140.21,140.16,39.4216]
[1724958492271,31.1519,140.24,140.16,39.4218]
[1724958492469,7.1321,140.21,140.17,7.1341]
[1724958492707,7.1321,140.21,140.16,32.2872]
[1724958493167,7.1329,140.2,140.15,24.9725]
[1724958493365,7.1329,140.2,140.16,7.1346]
[1724958493672,31.3414,140.32,140.12,87.50938625]
[1724958493673,7.13,140.26,140.12,87.50938625]
[1724958493862,7.1291,140.27,140.19,17.832]
[1724958494072,7.1296,140.26,140.19,17.832]
[1724958494369,7.1292,140.27,140.21,17.8296]
[1724958494567,7.1292,140.27,140.22,52.38248]
[1724958494745,33.57978206,140.32,140.23,7.131]
[1724958494948,33.57978206,140.32,140.24,45.25098]
[1724958495162,12.6975,140.32,140.24,45.25098]
[1724958495771,12.6975,140.32,140.25,7.1301]
[1724958495975,12.6975,140.32,140.24,45.25098]
[1724958496166,7.1286,140.28,140.24,45.25098]
[1724958496349,7.1291,140.27,140.24,45.25098]
[1724958496752,7.1286,140.28,140.24,45.25098]
[1724958497053,7.128,140.29,140.24,52.38148]
[1724958498272,7.128,140.29,140.23,17.8271]
[1724958498273,17.8189,140.31,140.2,49.0029]
[1724958498449,20.0,140.3,140.2,31.1717]
[1724958498650,7.1301,140.25,140.2,38.3041]
[1724958498976,17.8211,140.29,140.21,7.132]
[1724958498977,7.1296,140.26,140.21,7.132]
[1724958499183,20.0,140.3,140.21,17.8298]
[1724958499486,12.6975,140.32,140.23,17.827]
[1724958499651,7.1292,140.27,140.23,17.827]
[1724958499855,30.5141,140.32,140.23,17.827]
[1724958500196,30.5141,140.32,140.24,45.0]
[1724958500478,7.1301,140.25,140.2,49.0029]
[1724958500674,7.1301,140.25,140.21,45.0]
[1724958501044,7.131,140.24,140.21,45.0]
[1724958501258,7.1301,140.25,140.21,45.0]
[1724958501648,12.6975,140.32,140.22,18.32118205]
[1724958501849,20.0,140.31,140.22,17.8279]
[1724958502080,7.1295,140.27,140.22,24.9593]
[1724958502282,37.8189,140.31,140.22,24.9593]
[1724958502881,7.1281,140.29,140.23,0.25098]
[1724958503174,7.1281,140.29,140.24,7.1305]
[1724958503375,7.1273,140.31,140.26,7.1295]
[1724958503575,7.1267,140.32,140.27,7.1287]
[1724958503779,12.6896,140.36,140.26,17.8231]
[1724958503957,7.1281,140.29,140.25,7.25559]
[1724958504279,17.8133,140.35,140.25,7.25559]
[1724958504280,7.1276,140.3,140.26,45.12549]
[1724958504659,17.8133,140.35,140.25,0.12549]
[1724958504660,7.1281,140.29,140.25,0.12549]
[1724958504854,17.8157,140.33,140.24,7.1306]
[1724958505364,7.1282,140.29,140.24,7.1306]
[1724958506183,7.1276,140.3,140.25,7.13]
[1724958506362,7.1276,140.3,140.25,52.13]
[1724958506754,7.1286,140.28,140.23,7.25639]
[1724958506959,17.8157,140.33,140.24,17.95129]
[1724958507185,7.1279,140.3,140.25,7.1296]
[1724958507380,7.1281,140.29,140.25,7.1296]
[1724958507708,7.1281,140.29,140.24,25.08179]
[1724958508181,30.5014,140.36,140.25,45.12549]
[1724958508384,7.1277,140.3,140.26,0.12549]
[1724958508878,17.8156,140.33,140.26,0.12549]
[1724958509063,7.1279,140.3,140.25,52.25549]
[1724958509966,7.1279,140.3,140.26,7.1296]
[1724958510964,12.6896,140.36,140.28,30.437]
[1724958511283,7.124,140.37,140.32,7.1262]
[1724958511454,17.8079,140.39,140.31,7.1269]
[1724958511455,7.1249,140.36,140.31,7.1269]
[1724958511655,17.8079,140.39,140.3,17.8183]
[1724958511963,7.1266,140.32,140.28,37.5655]
[1724958512164,17.8109,140.37,140.28,30.437]
[1724958512465,42.81498625,140.32,140.28,30.437]
[1724958512864,17.8133,140.35,140.24,48.8333]
[1724958513165,7.1279,140.3,140.25,7.13]
[1724958513368,7.1279,140.3,140.24,48.8333]
[1724958513369,17.8158,140.33,140.24,55.9638]
[1724958513870,17.8158,140.33,140.24,48.8333]
[1724958514182,17.8158,140.33,140.25,0.12549]
[1724958514375,7.1269,140.32,140.27,7.129]
[1724958514571,7.1269,140.32,140.28,0.12549]
[1724958514785,7.1269,140.32,140.28,45.25098]
[1724958515084,17.8118,140.36,140.28,52.37938]
[1724958515085,7.126,140.34,140.28,52.37938]
[1724958515284,17.808,140.39,140.28,63.07148]
[1724958515454,7.1256,140.34,140.28,63.07148]
[1724958515659,13.0431,140.41,140.28,63.07148]
[1724958515660,17.8111,140.37,140.28,45.25098]
[1724958515954,17.8111,140.37,140.25,7.13]
[1724958516363,20.0,140.36,140.26,5.0]
[1724958516572,20.0,140.41,140.26,12.1294]
[1724958516791,45.12549,140.4,140.26,5.0]
[1724958516984,20.0,140.39,140.26,5.0]
[1724958517361,7.1277,140.3,140.26,5.0]
[1724958517556,7.1272,140.31,140.26,12.1295]
[1724958518179,98.4277,140.38,140.28,5.0]
[1724958518781,98.4277,140.38,140.3,5.0]
[1724958518991,7.1256,140.34,140.3,5.0]
[1724958519288,17.8088,140.38,140.3,5.0]
[1724958519586,7.1245,140.36,140.32,5.0]
[1724958520170,17.8053,140.41,140.34,5.0]
[1724958520380,13.015,140.43,140.34,5.0]
[1724958520381,7.1234,140.39,140.34,5.0]
[1724958520564,7.1241,140.37,140.34,5.0]
[1724958520886,7.1247,140.36,140.32,17.5831]
[1724958521072,7.1237,140.38,140.34,5.0]
[1724958521469,7.1231,140.39,140.36,5.0]
[1724958521859,17.7988,140.46,140.36,5.0]
[1724958522162,30.8138,140.46,140.36,5.0]
[1724958522589,7.1225,140.4,140.36,5.0]
[1724958523672,30.8138,140.46,140.36,12.1244]
[1724958523673,7.122,140.41,140.36,12.1244]
[1724958523983,7.1239,140.38,140.34,5.0]
[1724958524486,17.8047,140.42,140.34,5.0]
[1724958524785,17.8047,140.42,140.32,35.3989]
[1724958525194,7.1245,140.36,140.32,35.3989]
[1724958525400,7.1255,140.35,140.32,17.5831]
[1724958525567,7.1259,140.34,140.31,31.3498]
[1724958525763,53.4132,140.42,140.31,31.3498]
[1724958526067,7.1225,140.4,140.37,5.0]
[1724958526392,7.1223,140.41,140.37,5.0]
[1724958528196,7.1223,140.41,140.37,17.8647]
[1724958528570,7.1211,140.43,140.39,5.0]
[1724958528781,76.12308625,140.49,140.39,5.0]
[1724958529072,45.12549,140.48,140.35,22.812]
[1724958529277,45.12549,140.48,140.33,12.8647]
[1724958529278,7.1235,140.38,140.33,17.8647]
[1724958529580,7.1235,140.38,140.33,24.9906]
[1724958530000,7.124,140.37,140.33,17.8647]
[1724958530291,7.1236,140.38,140.33,24.9905]
[1724958530496,17.8018,140.44,140.36,5.0]
[1724958530877,7.1227,140.4,140.36,5.0]
[1724958531200,7.1208,140.44,140.39,7.1229]
[1724958531368,17.7962,140.48,140.38,5.0]
[1724958531369,7.1215,140.42,140.38,5.0]
[1724958531769,7.1215,140.42,140.39,31.3734]
[1724958533700,7.121,140.43,140.4,5.0]
[1724958534374,7.1205,140.44,140.4,5.0]
[1724958534591,45.69901081,140.49,140.4,5.0]
[1724958534790,20.0,140.48,140.4,5.0]
[1724958534993,7.121,140.43,140.4,5.0]
[1724958536996,7.1205,140.44,140.4,17.9756]
[1724958538693,17.7983,140.47,140.4,17.9756]
[1724958538902,17.8003,140.45,140.39,31.3734]
[1724958539280,7.1216,140.42,140.39,31.3734]
[1724958540305,17.7963,140.48,140.39,31.3734]
[1724958540499,7.121,140.43,140.39,31.3734]
[1724958540808,7.1215,140.42,140.4,5.0]
[1724958540977,7.1211,140.43,140.4,5.0]
[1724958541599,7.1211,140.43,140.38,7.1235]
[1724958541600,38.44572235,140.5,140.38,5.0]
[1724958541779,7.1236,140.38,140.36,5.0]
[1724958541982,7.1226,140.4,140.36,22.811]
[1724958542205,7.123,140.39,140.36,5.0]
[1724958542380,17.8021,140.44,140.36,5.0]
[1724958542579,17.8042,140.42,140.35,33.113]
[1724958542808,7.1244,140.37,140.35,33.113]
[1724958542980,17.8042,140.42,140.35,33.113]
[1724958543177,17.8042,140.42,140.36,5.0]
[1724958543403,17.8004,140.45,140.36,5.0]
[1724958543611,7.1223,140.41,140.36,12.1244]
[1724958543787,7.1213,140.43,140.4,5.0]
[1724958543982,7.121,140.43,140.4,5.0]
[1724958544190,2.86214011,140.48,140.4,5.0]
[1724958544191,20.65874011,140.48,140.4,5.0]
[1724958544402,17.7966,140.48,140.4,5.0]
[1724958544712,7.121,140.43,140.4,5.0]
[1724958545910,17.7966,140.48,140.4,12.1224]
[1724958546416,7.1205,140.44,140.4,5.0]
[1724958547784,2.845696,140.49,140.38,5.0]
[1724958547978,7.1215,140.42,140.4,5.0]
[1724958548182,7.1211,140.43,140.4,5.0]
[1724958548799,7.1208,140.44,140.4,5.0]
[1724958549009,0.12549,140.48,140.4,5.0]
[1724958549306,20.12549,140.48,140.4,5.0]
[1724958549680,20.12549,140.48,140.4,18.1511]
[1724958549885,20.0,140.48,140.4,18.1511]
[1724958550107,7.1206,140.44,140.4,18.1511]
[1724958550609,7.1206,140.44,140.4,25.2734]
[1724958551507,7.12,140.45,140.41,7.1218]
[1724958551710,7.12,140.45,140.4,25.2734]
[1724958552290,45.0,140.49,140.41,17.8042]
[1724958552508,45.0,140.5,140.41,17.8042]
[1724958552818,20.12549,140.49,140.41,17.8042]
[1724958553420,7.1199,140.45,140.41,17.8042]
[1724958553998,7.1214,140.42,140.4,18.1511]
[1724958554307,7.121,140.43,140.4,18.1511]
[1724958556604,7.1205,140.44,140.4,18.1511]
[1724958557219,7.1205,140.44,140.4,25.2735]
[1724958557414,7.1201,140.45,140.4,25.2735]
[1724958559524,7.1201,140.45,140.41,7.1219]
[1724958559822,7.1195,140.46,140.41,7.1219]
[1724958560421,7.1195,140.46,140.4,36.87072392]
[1724958560422,7.1195,140.46,140.42,7.1214]
[1724958561227,0.12549,140.49,140.41,1.42423859]
[1724958561401,7.1195,140.46,140.41,8.54613859]
[1724958562626,2.95203886,140.52,140.46,22.7976]
[1724958562810,12.4929,140.58,140.48,5.0]
[1724958563117,12.4929,140.58,140.48,22.7954]
[1724958563324,12.4929,140.58,140.48,29.9136]
[1724958563697,7.1175,140.5,140.45,22.7993]
[1724958563899,7.1174,140.5,140.46,7.1193]
[1724958564119,7.1174,140.5,140.45,29.9191]
[1724958564500,7.1179,140.49,140.45,29.9191]
[1724958564795,7.12,140.45,140.4,18.1511]
[1724958565300,7.12,140.45,140.4,25.2732]
[1724958565498,17.7955,140.49,140.42,5.0]
[1724958565499,7.1195,140.46,140.42,5.0]
[1724958565715,17.7912,140.52,140.42,5.0]
[1724958565921,65.12549,140.51,140.42,5.0]
[1724958566100,7.1188,140.48,140.43,7.1208]
[1724958566306,42.68557802,140.48,140.46,5.0]
[1724958566519,7.1164,140.52,140.47,7.1188]
[1724958566910,7.116,140.53,140.48,7.1183]
[1724958567321,7.1169,140.51,140.47,7.1188]
[1724958567624,7.1174,140.5,140.46,36.2527]
[1724958567827,7.1175,140.5,140.46,31.2527]
[1724958568033,7.1175,140.5,140.46,36.2527]
[1724958568210,7.1175,140.5,140.46,31.2527]
[1724958568736,7.1175,140.5,140.46,43.3721]
[1724958569108,21.37945854,140.55,140.47,7.1188]
[1724958569303,20.0,140.54,140.48,5.0]
[1724958569922,20.0,140.54,140.5,5.0]
[1724958570227,20.0,140.54,140.47,17.7964]
[1724958570228,37.7868,140.56,140.48,5.0]
[1724958570432,37.7868,140.56,140.47,24.9152]
[1724958570608,41.37391937,140.56,140.47,24.9152]
[1724958571232,45.12549,140.55,140.47,24.9152]
[1724958571409,42.68557802,140.51,140.47,24.9152]
[1724958571835,42.68557802,140.53,140.49,5.0]
[1724958572342,20.0,140.54,140.47,5.0]
[1724958572517,49.80297802,140.5,140.47,5.0]
[1724958572920,42.68557802,140.5,140.47,5.0]
[1724958573533,49.80297802,140.5,140.47,5.0]
[1724958573736,45.0,140.49,140.43,5.0]